[Event "*** SCC Grand Prix: Titled Tuesday Blitz"]
[Site "Chess.com"]
[Date "2020.06.02"]
[Round "7"]
[White "Rakesh"]
[Black "Harsha_Bharathakoti"]
[Result "1-0"]
[WhiteElo "2388"]
[BlackElo "2728"]
[TimeControl "180+1"]
[EndTime "11:20:47 PDT"]
[Termination "Rakesh won by checkmate"]

1. e4 {[%clk 0:02:45.2]} 1... c5 {[%clk 0:02:59.7]} 2. c3 {[%clk 0:02:45.1]}
2... Nf6 {[%clk 0:02:56.7]} 3. e5 {[%clk 0:02:44.2]} 3... Nd5 {[%clk 0:02:57.1]}
4. d4 {[%clk 0:02:45.1]} 4... cxd4 {[%clk 0:02:54.5]} 5. Nf3 {[%clk 0:02:46]}
5... e6 {[%clk 0:02:55.3]} 6. cxd4 {[%clk 0:02:45]} 6... d6 {[%clk 0:02:55.8]}
7. Bc4 {[%clk 0:02:43.8]} 7... Bd7 {[%clk 0:02:54.8]} 8. O-O {[%clk 0:02:42.5]}
8... Bc6 {[%clk 0:02:55]} 9. Bd2 {[%clk 0:02:42.4]} 9... Nd7 {[%clk 0:02:55.2]}
10. Nc3 {[%clk 0:02:42.2]} 10... Nxc3 {[%clk 0:02:54.6]} 11. Bxc3 {[%clk
0:02:43.1]} 11... dxe5 {[%clk 0:02:52.1]} 12. Nxe5 {[%clk 0:02:42]} 12... Nxe5
{[%clk 0:02:45.7]} 13. dxe5 {[%clk 0:02:42.9]} 13... Be7 {[%clk 0:02:43.8]} 14.
Qg4 {[%clk 0:02:35.4]} 14... O-O {[%clk 0:02:43.8]} 15. Rfd1 {[%clk 0:02:34.5]}
15... Qb6 {[%clk 0:02:38.7]} 16. Rd3 {[%clk 0:02:34.4]} 16... Rfd8 {[%clk
0:02:38.8]} 17. Rh3 {[%clk 0:02:26.4]} 17... Bb5 {[%clk 0:02:10.4]} 18. Qh5
{[%clk 0:02:12.6]} 18... h6 {[%clk 0:02:09.1]} 19. Bb3 {[%clk 0:01:58.9]} 19...
Rd3 {[%clk 0:01:32.2]} 20. Rxd3 {[%clk 0:01:50.5]} 20... Bxd3 {[%clk 0:01:32.3]}
21. Rd1 {[%clk 0:01:51.4]} 21... Rd8 {[%clk 0:01:25]} 22. h3 {[%clk 0:01:48.9]}
22... Bg6 {[%clk 0:01:07.8]} 23. Qf3 {[%clk 0:01:38.3]} 23... Rxd1+ {[%clk
0:01:05.9]} 24. Qxd1 {[%clk 0:01:39.2]} 24... Bc5 {[%clk 0:01:06.6]} 25. Qf3
{[%clk 0:01:36.7]} 25... Bf5 {[%clk 0:00:50.4]} 26. g4 {[%clk 0:01:35.4]} 26...
Bg6 {[%clk 0:00:48.7]} 27. h4 {[%clk 0:01:34.9]} 27... h5 {[%clk 0:00:24.9]} 28.
gxh5 {[%clk 0:01:35.8]} 28... Bf5 {[%clk 0:00:25.1]} 29. Kg2 {[%clk 0:01:35]}
29... Bd4 {[%clk 0:00:23.7]} 30. Qf4 {[%clk 0:01:27.4]} 30... Bxc3 {[%clk
0:00:22.7]} 31. bxc3 {[%clk 0:01:28.3]} 31... Qc6+ {[%clk 0:00:22.6]} 32. Kg1
{[%clk 0:01:19.9]} 32... Qxc3 {[%clk 0:00:23.2]} 33. Qg3 {[%clk 0:01:12.6]}
33... Qe1+ {[%clk 0:00:21.7]} 34. Kh2 {[%clk 0:01:10.8]} 34... Kh7 {[%clk
0:00:22.1]} 35. f3 {[%clk 0:01:09.9]} 35... Qe2+ {[%clk 0:00:21.2]} 36. Kg1
{[%clk 0:01:08.5]} 36... Qe3+ {[%clk 0:00:21.6]} 37. Kh2 {[%clk 0:01:08.2]}
37... Kh6 {[%clk 0:00:22]} 38. Ba4 {[%clk 0:00:54.6]} 38... Qe2+ {[%clk
0:00:17.5]} 39. Kg1 {[%clk 0:00:50.5]} 39... Qxa2 {[%clk 0:00:15.5]} 40. Be8
{[%clk 0:00:45.4]} 40... Qb1+ {[%clk 0:00:14.5]} 41. Kh2 {[%clk 0:00:45.1]}
41... Qc2+ {[%clk 0:00:14.9]} 42. Kg1 {[%clk 0:00:45.1]} 42... Qd1+ {[%clk
0:00:15.2]} 43. Kh2 {[%clk 0:00:45.3]} 43... Qd2+ {[%clk 0:00:15.7]} 44. Kg1
{[%clk 0:00:45.4]} 44... Qd1+ {[%clk 0:00:11.9]} 45. Kh2 {[%clk 0:00:45.4]}
45... Qd2+ {[%clk 0:00:11.9]} 46. Kg1 {[%clk 0:00:45.4]} 46... a5 {[%clk
0:00:12.6]} 47. Bxf7 {[%clk 0:00:45.2]} 47... a4 {[%clk 0:00:13.3]} 48. Bxe6
{[%clk 0:00:44.2]} 48... Qc1+ {[%clk 0:00:08.6]} 49. Kh2 {[%clk 0:00:44.2]}
49... Qc2+ {[%clk 0:00:08.9]} 50. Kg1 {[%clk 0:00:44.2]} 50... Kh7 {[%clk
0:00:06.6]} 51. h6 {[%clk 0:00:28.4]} 51... gxh6 {[%clk 0:00:04.9]} 52. Qg8#
{[%clk 0:00:27.5]} 1-0

[Event "*** SCC Grand Prix: Titled Tuesday Blitz"]
[Site "Chess.com"]
[Date "2020.06.02"]
[Round "7"]
[White "AnthonyWirig"]
[Black "Semetey"]
[Result "1-0"]
[WhiteElo "2705"]
[BlackElo "2539"]
[TimeControl "180+1"]
[EndTime "11:20:47 PDT"]
[Termination "AnthonyWirig won on time"]

1. d4 {[%clk 0:03:00.9]} 1... Nf6 {[%clk 0:02:59.1]} 2. Bg5 {[%clk 0:03:00.7]}
2... d5 {[%clk 0:02:58.9]} 3. Bxf6 {[%clk 0:03:00.7]} 3... gxf6 {[%clk
0:02:59.8]} 4. Nc3 {[%clk 0:03:00.4]} 4... c5 {[%clk 0:02:52.9]} 5. e3 {[%clk
0:02:50.1]} 5... Nc6 {[%clk 0:02:49.5]} 6. Qh5 {[%clk 0:02:43.8]} 6... e6 {[%clk
0:02:45.7]} 7. O-O-O {[%clk 0:02:36.3]} 7... Bd7 {[%clk 0:02:35.6]} 8. f4 {[%clk
0:02:30.4]} 8... f5 {[%clk 0:02:33]} 9. Nf3 {[%clk 0:02:25.8]} 9... Qf6 {[%clk
0:02:14.5]} 10. Ne5 {[%clk 0:02:14.5]} 10... Nxe5 {[%clk 0:02:11.8]} 11. dxe5
{[%clk 0:02:10.5]} 11... Qg6 {[%clk 0:02:12.2]} 12. Qf3 {[%clk 0:02:07.7]} 12...
a6 {[%clk 0:02:09.6]} 13. Kb1 {[%clk 0:01:57.9]} 13... Bc6 {[%clk 0:02:07.8]}
14. Qf2 {[%clk 0:01:56.6]} 14... O-O-O {[%clk 0:02:02.4]} 15. Rg1 {[%clk
0:01:55.4]} 15... h5 {[%clk 0:02:01.3]} 16. Be2 {[%clk 0:01:55.6]} 16... Be7
{[%clk 0:01:56.8]} 17. Bf3 {[%clk 0:01:55.6]} 17... Kb8 {[%clk 0:01:55.7]} 18.
Ne2 {[%clk 0:01:52.5]} 18... b5 {[%clk 0:01:49.1]} 19. Nc1 {[%clk 0:01:51.4]}
19... Rd7 {[%clk 0:01:23.6]} 20. Nb3 {[%clk 0:01:50.3]} 20... Ba8 {[%clk
0:01:01.9]} 21. Qe1 {[%clk 0:01:45]} 21... Rc8 {[%clk 0:00:55.7]} 22. g3 {[%clk
0:01:35.9]} 22... Qh6 {[%clk 0:00:50.4]} 23. Nc1 {[%clk 0:01:32.3]} 23... b4
{[%clk 0:00:48.4]} 24. h3 {[%clk 0:01:28.8]} 24... Bb7 {[%clk 0:00:37.2]} 25.
Qe2 {[%clk 0:01:25.3]} 25... Ka7 {[%clk 0:00:35.8]} 26. Bxh5 {[%clk 0:01:22.8]}
26... Rh8 {[%clk 0:00:35.3]} 27. g4 {[%clk 0:01:19.3]} 27... Bf8 {[%clk
0:00:29.3]} 28. Nb3 {[%clk 0:01:15.4]} 28... Rc7 {[%clk 0:00:28.6]} 29. Qf2
{[%clk 0:01:13.7]} 29... Kb8 {[%clk 0:00:27.4]} 30. Na5 {[%clk 0:01:12.1]} 30...
Bc8 {[%clk 0:00:24.1]} 31. Nb3 {[%clk 0:01:11.5]} 31... Qh7 {[%clk 0:00:19.2]}
32. Nc1 {[%clk 0:01:10]} 32... Be7 {[%clk 0:00:18.3]} 33. Qd2 {[%clk 0:01:06.3]}
33... a5 {[%clk 0:00:17.6]} 34. Qe2 {[%clk 0:01:05.8]} 34... Rb7 {[%clk
0:00:12.9]} 35. Rgf1 {[%clk 0:00:58.5]} 35... a4 {[%clk 0:00:12.1]} 36. Qd2
{[%clk 0:00:53.6]} 36... Rb6 {[%clk 0:00:12]} 37. Ne2 {[%clk 0:00:52.6]} 37...
Ba6 {[%clk 0:00:11.7]} 38. Rg1 {[%clk 0:00:52.7]} 38... a3 {[%clk 0:00:10.9]}
39. b3 {[%clk 0:00:48.4]} 39... Rc6 {[%clk 0:00:11]} 40. Rc1 {[%clk 0:00:44.4]}
40... Rc7 {[%clk 0:00:09.8]} 41. Ka1 {[%clk 0:00:42.8]} 41... Rhc8 {[%clk
0:00:07.3]} 42. c3 {[%clk 0:00:42.5]} 42... fxg4 {[%clk 0:00:04.4]} 43. hxg4
{[%clk 0:00:39.7]} 43... Qd3 {[%clk 0:00:02.9]} 44. Qxd3 {[%clk 0:00:29.7]}
44... Bxd3 {[%clk 0:00:03.8]} 45. g5 {[%clk 0:00:28.6]} 45... Rh8 {[%clk
0:00:02.3]} 46. Bg4 {[%clk 0:00:27]} 46... Bxe2 {[%clk 0:00:02.4]} 47. Bxe2
{[%clk 0:00:26.7]} 47... Rh2 {[%clk 0:00:03.3]} 48. Rge1 {[%clk 0:00:23.1]}
48... bxc3 {[%clk 0:00:01.7]} 49. Rxc3 {[%clk 0:00:21.2]} 1-0

[Event "*** SCC Grand Prix: Titled Tuesday Blitz"]
[Site "Chess.com"]
[Date "2020.06.02"]
[Round "7"]
[White "MFguimaraes"]
[Black "iaraldinho"]
[Result "1/2-1/2"]
[WhiteElo "2425"]
[BlackElo "2625"]
[TimeControl "180+1"]
[EndTime "11:20:48 PDT"]
[Termination "Game drawn by agreement"]

1. e4 {[%clk 0:03:00.9]} 1... c5 {[%clk 0:02:59.5]} 2. Nf3 {[%clk 0:03:00.6]}
2... a6 {[%clk 0:02:59.8]} 3. c3 {[%clk 0:02:53.2]} 3... d5 {[%clk 0:02:58.9]}
4. exd5 {[%clk 0:02:52.9]} 4... Qxd5 {[%clk 0:02:58.9]} 5. d4 {[%clk 0:02:53.3]}
5... cxd4 {[%clk 0:02:58.9]} 6. Qxd4 {[%clk 0:02:51.4]} 6... Nf6 {[%clk
0:02:58.3]} 7. Be3 {[%clk 0:02:44.8]} 7... Nc6 {[%clk 0:02:57.1]} 8. Qb6 {[%clk
0:02:37.5]} 8... e5 {[%clk 0:02:50.1]} 9. Nbd2 {[%clk 0:02:30.7]} 9... Nd7
{[%clk 0:02:35]} 10. Qb3 {[%clk 0:02:26.5]} 10... Qxb3 {[%clk 0:02:34.6]} 11.
axb3 {[%clk 0:02:26.1]} 11... Bc5 {[%clk 0:02:31]} 12. Bxc5 {[%clk 0:02:07.9]}
12... Nxc5 {[%clk 0:02:31.9]} 13. Nc4 {[%clk 0:02:03.2]} 13... O-O {[%clk
0:02:24.9]} 14. Nb6 {[%clk 0:01:57.4]} 14... Rb8 {[%clk 0:02:24]} 15. b4 {[%clk
0:01:57.5]} 15... Nd7 {[%clk 0:02:16.8]} 16. Nc4 {[%clk 0:01:40.5]} 16... h6
{[%clk 0:02:11.8]} 17. Be2 {[%clk 0:01:40.2]} 17... e4 {[%clk 0:02:11.6]} 18.
Nfd2 {[%clk 0:01:39.9]} 18... f5 {[%clk 0:02:10.5]} 19. O-O-O {[%clk 0:01:30.3]}
19... Nde5 {[%clk 0:02:09.6]} 20. Nxe5 {[%clk 0:01:30.1]} 20... Nxe5 {[%clk
0:02:09.1]} 21. Nc4 {[%clk 0:01:30.4]} 21... Nc6 {[%clk 0:02:04.9]} 22. Nb6
{[%clk 0:01:29.1]} 22... Be6 {[%clk 0:02:04.5]} 23. Rd6 {[%clk 0:01:26.5]} 23...
Kf7 {[%clk 0:02:01.8]} 24. Rhd1 {[%clk 0:01:25.7]} 24... Rfd8 {[%clk 0:02:00.2]}
25. Bc4 {[%clk 0:01:21.7]} 25... Bxc4 {[%clk 0:01:57]} 26. Nxc4 {[%clk
0:01:22.6]} 26... Ke7 {[%clk 0:01:56.2]} 27. Kc2 {[%clk 0:01:16.6]} 27... Rxd6
{[%clk 0:01:53]} 28. Rxd6 {[%clk 0:01:14.7]} 28... Ne5 {[%clk 0:01:45.6]} 29.
Rd4 {[%clk 0:01:14.5]} 29... Nxc4 {[%clk 0:01:42.5]} 30. Rxc4 {[%clk 0:01:14.3]}
30... Rd8 {[%clk 0:01:38.1]} 31. Rc5 {[%clk 0:01:12.7]} 31... Ke6 {[%clk
0:01:36.9]} 32. b5 {[%clk 0:01:12.5]} 32... axb5 {[%clk 0:01:24.8]} 33. Rxb5
{[%clk 0:01:11.4]} 33... Rd7 {[%clk 0:01:25.7]} 34. h4 {[%clk 0:01:08.2]} 34...
g5 {[%clk 0:01:24.5]} 35. Rb6+ {[%clk 0:01:07.3]} 35... Ke5 {[%clk 0:01:23.2]}
36. Rxh6 {[%clk 0:01:06.4]} 36... gxh4 {[%clk 0:01:23.3]} 37. Rxh4 {[%clk
0:01:06]} 37... f4 {[%clk 0:01:21.4]} 38. Rh5+ {[%clk 0:01:00.1]} 38... Kf6
{[%clk 0:01:21.1]} 39. Rh8 {[%clk 0:00:58.4]} 39... Rg7 {[%clk 0:01:20.2]} 40.
Rf8+ {[%clk 0:00:55.9]} 40... Ke5 {[%clk 0:01:19.3]} 41. Re8+ {[%clk 0:00:55.9]}
41... Kd5 {[%clk 0:01:18.6]} 42. Rf8 {[%clk 0:00:54.6]} 42... Ke5 {[%clk
0:01:15.4]} 43. Re8+ {[%clk 0:00:52.4]} 43... Kd5 {[%clk 0:00:58.2]} 44. Rf8
{[%clk 0:00:51.6]} 44... Rxg2 {[%clk 0:00:57.8]} 45. Rxf4 {[%clk 0:00:51]} 45...
e3 {[%clk 0:00:58.2]} 46. Kd3 {[%clk 0:00:48.7]} 46... exf2 {[%clk 0:00:42.3]}
47. b4 {[%clk 0:00:36.7]} 47... Ke5 {[%clk 0:00:36.6]} 48. Rf7 {[%clk
0:00:34.1]} 48... Rg3+ {[%clk 0:00:33.7]} 49. Kd2 {[%clk 0:00:33.7]} 49... Rg2
{[%clk 0:00:28]} 50. Ke2 {[%clk 0:00:33.4]} 50... Rg3 {[%clk 0:00:23.4]} 51.
Rxb7 {[%clk 0:00:28.4]} 51... Rxc3 {[%clk 0:00:22.9]} 52. Kxf2 {[%clk
0:00:27.8]} 52... Rb3 {[%clk 0:00:21.4]} 53. Ke2 {[%clk 0:00:26.3]} 53... Kd4
{[%clk 0:00:21.8]} 54. Kd2 {[%clk 0:00:25.8]} 54... Kc4 {[%clk 0:00:20.4]} 55.
Kc2 {[%clk 0:00:23.4]} 55... Rxb4 {[%clk 0:00:19.8]} 1/2-1/2

[Event "*** SCC Grand Prix: Titled Tuesday Blitz"]
[Site "Chess.com"]
[Date "2020.06.02"]
[Round "7"]
[White "Igrok3069"]
[Black "Flawless_Fighter"]
[Result "1-0"]
[WhiteElo "2765"]
[BlackElo "2490"]
[TimeControl "180+1"]
[EndTime "11:20:49 PDT"]
[Termination "Igrok3069 won by resignation"]

1. d4 {[%clk 0:03:00.9]} 1... Nf6 {[%clk 0:02:59.2]} 2. Nf3 {[%clk 0:03:00.3]}
2... e6 {[%clk 0:02:59.4]} 3. c4 {[%clk 0:02:59.9]} 3... d5 {[%clk 0:02:58.5]}
4. Nc3 {[%clk 0:02:59.3]} 4... c5 {[%clk 0:02:58.8]} 5. cxd5 {[%clk 0:02:57.1]}
5... Nxd5 {[%clk 0:02:59.7]} 6. Nxd5 {[%clk 0:02:50.8]} 6... Qxd5 {[%clk
0:02:58.1]} 7. g3 {[%clk 0:02:43.5]} 7... cxd4 {[%clk 0:02:47.5]} 8. Qxd4 {[%clk
0:02:42]} 8... Qxd4 {[%clk 0:02:41.6]} 9. Nxd4 {[%clk 0:02:41.7]} 9... Bb4+
{[%clk 0:02:42.3]} 10. Bd2 {[%clk 0:02:40.6]} 10... Bxd2+ {[%clk 0:02:42.9]} 11.
Kxd2 {[%clk 0:02:41.5]} 11... Ke7 {[%clk 0:02:34.3]} 12. Rc1 {[%clk 0:02:37.2]}
12... Rd8 {[%clk 0:02:33]} 13. Ke3 {[%clk 0:02:36.7]} 13... e5 {[%clk
0:02:16.5]} 14. Nb5 {[%clk 0:02:17.6]} 14... Nc6 {[%clk 0:02:04.4]} 15. Bg2
{[%clk 0:02:17.4]} 15... Bd7 {[%clk 0:02:01]} 16. Rhd1 {[%clk 0:02:04.3]} 16...
f6 {[%clk 0:01:52.2]} 17. a3 {[%clk 0:02:00.1]} 17... Be8 {[%clk 0:01:38.8]} 18.
Rxd8 {[%clk 0:01:56.8]} 18... Rxd8 {[%clk 0:01:22.5]} 19. Bxc6 {[%clk
0:01:54.6]} 19... bxc6 {[%clk 0:01:12.5]} 20. Nc3 {[%clk 0:01:25.8]} 20... Bf7
{[%clk 0:01:02]} 21. b4 {[%clk 0:01:08]} 21... Ra8 {[%clk 0:00:49.4]} 22. Na4
{[%clk 0:01:05.5]} 22... Bd5 {[%clk 0:00:48.2]} 23. Rc5 {[%clk 0:01:05.2]} 23...
Kd6 {[%clk 0:00:47]} 24. Ra5 {[%clk 0:01:04.1]} 24... Kc7 {[%clk 0:00:43.5]} 25.
Nc3 {[%clk 0:01:03.5]} 25... Be6 {[%clk 0:00:41.6]} 26. f4 {[%clk 0:01:00.4]}
26... exf4+ {[%clk 0:00:39.5]} 27. gxf4 {[%clk 0:01:01.3]} 27... Kb6 {[%clk
0:00:39.7]} 28. Na4+ {[%clk 0:01:01.1]} 28... Kc7 {[%clk 0:00:39.7]} 29. Kd4
{[%clk 0:00:57.5]} 29... Rd8+ {[%clk 0:00:37]} 30. Kc3 {[%clk 0:00:56.4]} 30...
Kb8 {[%clk 0:00:32.9]} 31. Rh5 {[%clk 0:00:46.3]} 31... h6 {[%clk 0:00:31]} 32.
e4 {[%clk 0:00:40.4]} 32... Rd1 {[%clk 0:00:30.1]} 33. Nc5 {[%clk 0:00:40]}
33... Bf7 {[%clk 0:00:24.9]} 34. Rh3 {[%clk 0:00:40.2]} 34... Rc1+ {[%clk
0:00:23.3]} 35. Kd2 {[%clk 0:00:38.9]} 35... Rf1 {[%clk 0:00:23.3]} 36. Ke3
{[%clk 0:00:36.4]} 36... Ra1 {[%clk 0:00:23.9]} 37. Kd4 {[%clk 0:00:34.6]} 37...
Rf1 {[%clk 0:00:24.1]} 38. f5 {[%clk 0:00:33]} 38... Rd1+ {[%clk 0:00:19.1]} 39.
Ke3 {[%clk 0:00:32.5]} 39... Ra1 {[%clk 0:00:18.8]} 40. Kf4 {[%clk 0:00:31.6]}
40... Rf1+ {[%clk 0:00:18.5]} 41. Rf3 {[%clk 0:00:31.3]} 41... Rh1 {[%clk
0:00:18.3]} 42. Rg3 {[%clk 0:00:30.8]} 42... Rxh2 {[%clk 0:00:16.1]} 43. Rxg7
{[%clk 0:00:30.3]} 43... Bc4 {[%clk 0:00:17]} 44. Nd7+ {[%clk 0:00:29.3]} 44...
Kc8 {[%clk 0:00:16.1]} 45. Nxf6 {[%clk 0:00:30.2]} 45... Rh3 {[%clk 0:00:14.5]}
46. Rxa7 {[%clk 0:00:28.2]} 46... Be2 {[%clk 0:00:12.8]} 47. e5 {[%clk 0:00:24]}
47... Rf3+ {[%clk 0:00:11.6]} 48. Ke4 {[%clk 0:00:23.8]} 48... Rg3 {[%clk
0:00:10.1]} 49. e6 {[%clk 0:00:22.4]} 49... Bd3+ {[%clk 0:00:08]} 50. Kf4 {[%clk
0:00:22]} 50... Rg1 {[%clk 0:00:08.8]} 51. e7 {[%clk 0:00:20.6]} 51... Rf1+
{[%clk 0:00:09.1]} 52. Ke3 {[%clk 0:00:19.9]} 1-0

[Event "*** SCC Grand Prix: Titled Tuesday Blitz"]
[Site "Chess.com"]
[Date "2020.06.02"]
[Round "7"]
[White "ZAbdumalik"]
[Black "SCIM"]
[Result "0-1"]
[WhiteElo "2642"]
[BlackElo "2512"]
[TimeControl "180+1"]
[EndTime "11:20:49 PDT"]
[Termination "SCIM won by resignation"]

1. e4 {[%clk 0:03:00.9]} 1... c5 {[%clk 0:02:59.9]} 2. Nf3 {[%clk 0:03:00.8]}
2... e6 {[%clk 0:03:00.2]} 3. d4 {[%clk 0:03:00.8]} 3... cxd4 {[%clk 0:03:00.6]}
4. Nxd4 {[%clk 0:03:01.5]} 4... Nc6 {[%clk 0:03:01]} 5. Nc3 {[%clk 0:03:01.4]}
5... Qc7 {[%clk 0:03:00.8]} 6. Be3 {[%clk 0:03:00.8]} 6... a6 {[%clk 0:03:01.1]}
7. Be2 {[%clk 0:02:58.7]} 7... Nf6 {[%clk 0:02:59.3]} 8. O-O {[%clk 0:02:58.9]}
8... b5 {[%clk 0:02:59.3]} 9. a3 {[%clk 0:02:58.6]} 9... Bb7 {[%clk 0:02:58.6]}
10. f4 {[%clk 0:02:58.9]} 10... Nxd4 {[%clk 0:02:54.6]} 11. Qxd4 {[%clk
0:02:58.4]} 11... Rc8 {[%clk 0:02:52.9]} 12. Bf3 {[%clk 0:02:47.5]} 12... Bc5
{[%clk 0:02:44.7]} 13. Qxc5 {[%clk 0:02:39.3]} 13... Qxc5 {[%clk 0:02:45.6]} 14.
Bxc5 {[%clk 0:02:39.7]} 14... Rxc5 {[%clk 0:02:46.2]} 15. Rad1 {[%clk 0:02:40]}
15... Rxc3 {[%clk 0:02:27.5]} 16. bxc3 {[%clk 0:02:37.9]} 16... Nxe4 {[%clk
0:02:28]} 17. Rde1 {[%clk 0:02:16.4]} 17... f5 {[%clk 0:02:25.9]} 18. Re3 {[%clk
0:02:08.1]} 18... Ke7 {[%clk 0:02:23.7]} 19. Rd1 {[%clk 0:01:58.8]} 19... Rc8
{[%clk 0:02:16.9]} 20. Rdd3 {[%clk 0:01:50.5]} 20... d5 {[%clk 0:02:04.4]} 21.
Bxe4 {[%clk 0:01:48.3]} 21... fxe4 {[%clk 0:02:00.7]} 22. Rd4 {[%clk 0:01:47.2]}
22... Rc5 {[%clk 0:01:55.2]} 23. Kf2 {[%clk 0:01:45.9]} 23... Kf6 {[%clk
0:01:52.4]} 24. g4 {[%clk 0:01:28.5]} 24... g6 {[%clk 0:01:39.3]} 25. Ke2 {[%clk
0:01:22]} 25... Bc8 {[%clk 0:01:32.3]} 26. Kd2 {[%clk 0:01:19.7]} 26... Bd7
{[%clk 0:01:27.7]} 27. Rh3 {[%clk 0:01:12.6]} 27... Kg7 {[%clk 0:01:19.3]} 28.
Rg3 {[%clk 0:01:02.8]} 28... Rc8 {[%clk 0:01:13.9]} 29. f5 {[%clk 0:00:50.6]}
29... Kf6 {[%clk 0:01:03.3]} 30. fxe6 {[%clk 0:00:48.5]} 30... Bxe6 {[%clk
0:01:03.3]} 31. a4 {[%clk 0:00:45.7]} 31... Ke5 {[%clk 0:00:56.1]} 32. axb5
{[%clk 0:00:44.6]} 32... axb5 {[%clk 0:00:57]} 33. Rb4 {[%clk 0:00:40.8]} 33...
Rf8 {[%clk 0:00:55.4]} 34. Ke2 {[%clk 0:00:35.5]} 34... Bd7 {[%clk 0:00:31.3]}
35. Rb1 {[%clk 0:00:28.4]} 35... Rf4 {[%clk 0:00:26.4]} 36. h3 {[%clk
0:00:28.2]} 36... g5 {[%clk 0:00:23.6]} 37. Rf1 {[%clk 0:00:20.3]} 37... b4
{[%clk 0:00:19.5]} 38. Rb1 {[%clk 0:00:17]} 38... bxc3 {[%clk 0:00:10]} 39. Rxc3
{[%clk 0:00:16.5]} 39... Be6 {[%clk 0:00:09.8]} 40. Rf1 {[%clk 0:00:15.3]} 40...
d4 {[%clk 0:00:07.8]} 41. Rc5+ {[%clk 0:00:15.4]} 41... Bd5 {[%clk 0:00:07.9]}
42. Ra5 {[%clk 0:00:15.5]} 42... d3+ {[%clk 0:00:07.1]} 43. cxd3 {[%clk
0:00:13.1]} 43... exd3+ {[%clk 0:00:08]} 44. Kxd3 {[%clk 0:00:08.7]} 44... Rxf1
{[%clk 0:00:07.5]} 45. Ra7 {[%clk 0:00:06.9]} 45... Rf3+ {[%clk 0:00:08]} 46.
Ke2 {[%clk 0:00:05.8]} 46... Rxh3 {[%clk 0:00:08.9]} 0-1

[Event "*** SCC Grand Prix: Titled Tuesday Blitz"]
[Site "Chess.com"]
[Date "2020.06.02"]
[Round "7"]
[White "mamonika"]
[Black "Klavdia_Nik"]
[Result "1-0"]
[WhiteElo "1965"]
[BlackElo "2041"]
[TimeControl "180+1"]
[EndTime "11:20:49 PDT"]
[Termination "mamonika won on time"]

1. e4 {[%clk 0:03:00.9]} 1... c5 {[%clk 0:02:58.5]} 2. Nf3 {[%clk 0:03:00.7]}
2... Nc6 {[%clk 0:02:58.7]} 3. d4 {[%clk 0:03:01.6]} 3... cxd4 {[%clk
0:02:58.3]} 4. Nxd4 {[%clk 0:03:02.5]} 4... Nf6 {[%clk 0:02:58.1]} 5. Nc3 {[%clk
0:03:02.4]} 5... d6 {[%clk 0:02:58.3]} 6. Be2 {[%clk 0:03:02.7]} 6... a6 {[%clk
0:02:56.7]} 7. O-O {[%clk 0:03:02.3]} 7... e6 {[%clk 0:02:57.2]} 8. Be3 {[%clk
0:03:02]} 8... Be7 {[%clk 0:02:57.5]} 9. f4 {[%clk 0:03:02]} 9... O-O {[%clk
0:02:56.3]} 10. Qe1 {[%clk 0:03:02.3]} 10... Qc7 {[%clk 0:02:47.5]} 11. Qg3
{[%clk 0:02:54.6]} 11... b5 {[%clk 0:02:45.3]} 12. a3 {[%clk 0:02:52.2]} 12...
Bb7 {[%clk 0:02:43.5]} 13. Rae1 {[%clk 0:02:46]} 13... Na5 {[%clk 0:02:43.5]}
14. e5 {[%clk 0:02:07.3]} 14... Nd5 {[%clk 0:02:34.5]} 15. Nxd5 {[%clk
0:01:59.9]} 15... Bxd5 {[%clk 0:02:30.9]} 16. f5 {[%clk 0:01:27.3]} 16... f6
{[%clk 0:02:05.8]} 17. Bh6 {[%clk 0:01:18.4]} 17... Bd8 {[%clk 0:01:23.3]} 18.
fxe6 {[%clk 0:00:58.9]} 18... dxe5 {[%clk 0:01:13.3]} 19. Nf5 {[%clk 0:00:56.3]}
19... g6 {[%clk 0:00:49.2]} 20. Bxf8 {[%clk 0:00:39.3]} 20... Kxf8 {[%clk
0:00:49.5]} 21. Ne3 {[%clk 0:00:19.8]} 21... Bxe6 {[%clk 0:00:47.2]} 22. Rd1
{[%clk 0:00:16.8]} 22... Kg7 {[%clk 0:00:38.2]} 23. Qf3 {[%clk 0:00:12.1]} 23...
Ra7 {[%clk 0:00:34.5]} 24. Rd2 {[%clk 0:00:09.9]} 24... Be7 {[%clk 0:00:29.3]}
25. Rfd1 {[%clk 0:00:09.2]} 25... Nc4 {[%clk 0:00:26.9]} 26. Nxc4 {[%clk
0:00:09.1]} 26... bxc4 {[%clk 0:00:26.3]} 27. Kh1 {[%clk 0:00:06.8]} 27... Qb6
{[%clk 0:00:16.9]} 28. c3 {[%clk 0:00:04.6]} 28... Rc7 {[%clk 0:00:15.6]} 29.
Qe4 {[%clk 0:00:03.7]} 29... Bf5 {[%clk 0:00:14.4]} 30. Qh4 {[%clk 0:00:03.1]}
30... g5 {[%clk 0:00:11.6]} 31. Qh5 {[%clk 0:00:02.4]} 31... Bg6 {[%clk
0:00:11.7]} 32. Qf3 {[%clk 0:00:02.4]} 32... e4 {[%clk 0:00:10.9]} 33. Qg3
{[%clk 0:00:01.5]} 33... Bc5 {[%clk 0:00:09.8]} 34. Bf1 {[%clk 0:00:02.4]} 34...
Qc6 {[%clk 0:00:08]} 35. Qh3 {[%clk 0:00:02.7]} 35... f5 {[%clk 0:00:06.2]} 36.
Rd5 {[%clk 0:00:01.9]} 36... Re7 {[%clk 0:00:05.7]} 37. Qg3 {[%clk 0:00:02.1]}
37... h6 {[%clk 0:00:04.6]} 38. Qb8 {[%clk 0:00:01.8]} 38... f4 {[%clk
0:00:03.5]} 39. Re5 {[%clk 0:00:02.1]} 39... Qf6 {[%clk 0:00:01.7]} 40. Rxe7+
{[%clk 0:00:02]} 40... Qxe7 {[%clk 0:00:02.2]} 41. Qc8 {[%clk 0:00:02.1]} 1-0